Workbook

Sheet PREVISÃO DA RECEITA
A7: PROGRAMA/PROJETO:
A8: COORDENADOR (A):
A9: PERÍODO DE EXECUÇÃO:
A10: CÓDIGO DO PROJETO: | J10: CONTA CORRENTE:
A12: PREVISÃO DE RECEITA
A15: NOME DO ÓRGÃO FINANCIADOR | H15: ORIGEM DOS RECURSOS | O15: VALOR | U15: 2
A16: NEOENERGIA
A18: TOTAL DA PREVISÃO DE RECEITA | H18: =SUM(O16:R17) -> 0
AE21: Orgãos do Governo Federal, Estadual, Municipal
AE22: Órgãos não Governamentais
AE23: Órgãos/ Entidades Economia Mista e Privada
AE24: Org. Estrangeiras e Internacionais
C25: ATUALIZADO EM | AE25: Patrocínios
AE26: Concursos e Seleções
AE27: Cursos de Pós-graduação
AE28: Doações e subvenções
AE29: Outras Fontes de Recursos

Sheet PREVISÃO DE DESPESA
A2: PREVISÃO DA DESPESA
A4: ELEMENTOS DE DESPESAS
A7: 319011 DESPESAS COM PESSOAL | M7: 2 | O7: Tabela para Cálculo dos Descontos
A8: Item | B8: CPF | C8: Função | D8: Nome | F8: REMUNERAÇÃO BRUTA (R$) | H8: QUANT. MESES | I8: TOTAL DE SALÁRIO BRUTO (R$) | K8: 0 | O8: Valor Líquido | P8: Alíquota do INSS | Q8: INSS | R8: Valor descontado do INSS | S8: 1ª Faixa (INSS) | T8: 2ª Faixa (INSS) | U8: 3ª Faixa (INSS) | V8: 4ª Faixa (INSS) | W8: IR | X8: 2ª Faixa (IR) | Y8: 3ª Faixa (IR) | Z8: 4ª Faixa (IR) | AA8: 5ª Faixa (IR) | AB8: 1ª Faixa (INSS) | AD8: 2ª Faixa (INSS) | AF8: 3ª Faixa (INSS) | AH8: 4ª Faixa (INSS)
A9: =K9 -> 1 | F9: 5000 | H9: 36 | I9: =F9*H9 -> 180000 | K9: =K8+1 -> 1 | O9: =IF(F9>0,F9-Q9-W9,0) -> 4103.35 | P9: =IF($F9<=$AT$64,$AU$64,IF($F9<=$AT$65,$AU$65,IF($F9<=$AT$66,$AU$66,IF($F9<=$AT$67,$AU$67,$AU$67)))) -> 0.14 | Q9: =S9+T9+U9+V9 -> 526.17 | R9: =F9-Q9 -> 4473.83 | S9: =IF(AC9>0,ROUND(AC9,2),0) -> 97.65 | T9: =IF(AE9>0,ROUNDDOWN(AE9,2),0) -> 114.23 | U9: =IF(AG9>0,ROUNDDOWN(AG9,2),0) -> 154.27 | V9: =IF(AI9>0,ROUNDDOWN(AI9,2),0) -> 160.02 | W9: =SUM(X9:AA9) -> 370.48 | X9: =ROUNDDOWN(IF($R9>$AM$65,($AM$65-$AM$64)*$AN$65,IF(AND($R9>=$AK$65,$R9<=$AM$65),($R9-$AK$65)*$AN$65,0)),2) -> 69.2 | Y9: =ROUNDDOWN(IF($R9>$AM$66,($AM$66-$AM$65)*$AN$66,IF(AND($R9>=$AK$66,$R9<=$AM$66),($R9-$AK$66)*$AN$66,0)),2) -> 138.66 | Z9: =ROUNDDOWN(IF($R9>$AM$67,($AM$67-$AM$66)*$AN$67,IF(AND($R9>=$AK$67,$R9<=$AM$67),($R9-$AK$67)*$AN$67,0)),2) -> 162.62 | AA9: =ROUNDDOWN(IF($R9>$AM$68,($R9-$AM$68)*$AN$68,0),2) -> 0 | AB9: =IF($F9>=$AT$64,$AT$64*$AU$64,$F9*$AU$64) -> 97.65 | AC9: =IF(AB9>0,AB9,0) -> 97.65 | AD9: =IF($F9>=$AT$65,(($AT$65-$AT$64)*$AU$65)+AB9,(($F9-$AT$64)*$AU$65)+AB9) -> 211.8861 | AE9: =IF(AD9>0,AD9-AC9,0) -> 114.2361 | AF9: =IF($F9>=$AT$66,(($AT$66-$AT$65)*$AU$66)+AD9,(($F9-$AT$65)*$AU$66)+AD9) -> 366.1641 | AG9: =IF(AF9>0,AF9-AC9-AE9,0) -> 154.278 | AH9: =IF($F9>=$AT$67,(($AT$67-$AT$66)*$AU$67)+AF9,(($F9-$AT$66)*$AU$67)+AF9) -> 526.1925 | AI9: =IF(AH9>0,AH9-AG9-AE9-AC9,0) -> 160.0284
A10: =K10 -> 2 | F10: 0 | H10: 0 | I10: =F10*H10 -> 0 | K10: =K9+1 -> 2 | O10: =IF(F10>0,F10-Q10-W10,0) -> 0 | P10: =IF($F10<=$AT$64,$AU$64,IF($F10<=$AT$65,$AU$65,IF($F10<=$AT$66,$AU$66,IF($F10<=$AT$67,$AU$67,$AU$67)))) -> 0.075 | Q10: =S10+T10+U10+V10 -> 0 | R10: =F10-Q10 -> 0 | S10: =IF(AC10>0,ROUND(AC10,2),0) -> 0 | T10: =IF(AE10>0,ROUNDDOWN(AE10,2),0) -> 0 | U10: =IF(AG10>0,ROUNDDOWN(AG10,2),0) -> 0 | V10: =IF(AI10>0,ROUNDDOWN(AI10,2),0) -> 0 | W10: =SUM(X10:AA10) -> 0 | X10: =ROUNDDOWN(IF($R10>$AM$65,($AM$65-$AM$64)*$AN$65,IF(AND($R10>=$AK$65,$R10<=$AM$65),($R10-$AK$65)*$AN$65,0)),2) -> 0 | Y10: =ROUNDDOWN(IF($R10>$AM$66,($AM$66-$AM$65)*$AN$66,IF(AND($R10>=$AK$66,$R10<=$AM$66),($R10-$AK$66)*$AN$66,0)),2) -> 0 | Z10: =ROUNDDOWN(IF($R10>$AM$67,($AM$67-$AM$66)*$AN$67,IF(AND($R10>=$AK$67,$R10<=$AM$67),($R10-$AK$67)*$AN$67,0)),2) -> 0 | AA10: =ROUNDDOWN(IF($R10>$AM$68,($R10-$AM$68)*$AN$68,0),2) -> 0 | AB10: =IF($F10>=$AT$64,$AT$64*$AU$64,$F10*$AU$64) -> 0 | AC10: =IF(AB10>0,AB10,0) -> 0 | AD10: =IF($F10>=$AT$65,(($AT$65-$AT$64)*$AU$65)+AB10,(($F10-$AT$64)*$AU$65)+AB10) -> -117.18 | AE10: =IF(AD10>0,AD10-AC10,0) -> 0 | AF10: =IF($F10>=$AT$66,(($AT$66-$AT$65)*$AU$66)+AD10,(($F10-$AT$65)*$AU$66)+AD10) -> -425.7348 | AG10: =IF(AF10>0,AF10-AC10-AE10,0) -> 0 | AH10: =IF($F10>=$AT$67,(($AT$67-$AT$66)*$AU$67)+AF10,(($F10-$AT$66)*$AU$67)+AF10) -> -965.7064 | AI10: =IF(AH10>0,AH10-AG10-AE10-AC10,0) -> 0
A11: SUBTOTAL | I11: =SUM(I9:I10) -> 180000
A13: 319013 ENCARGOS SOCIAIS
A14: Item | B14: CPF | C14: FUNÇÃO | D14: NOME | H14: QUANT. MESES | I14: VALOR (R$)
A15: =+A9 -> 1 | B15: =B9 -> 0 | C15: 0 | D15: 0 | H15: =+H9 -> 36 | I15: =+'CONTRATAÇÃO DE PESSOAL'!J19*H9 -> 63540
A16: =+A10 -> 2 | B16: 0 | C16: 0 | D16: 0 | H16: =+H10 -> 0 | I16: =+'CONTRATAÇÃO DE PESSOAL'!J20*H10 -> 0
A17: SUBTOTAL | I17: =SUM(I15:I16) -> 63540
A19: 999999 OBRIGAÇÕES PATRONAIS SOBRE FÉRIAS, 13º SALÁRIO E RESCISÃO CONTRATUAL
A20: Item | B20: CPF | C20: FUNÇÃO | D20: NOME | I20: VALOR (R$)
A21: =+A9 -> 1 | B21: =B9 -> 0 | C21: 0 | D21: 0 | I21: ='CONTRATAÇÃO DE PESSOAL'!AH19 -> 52778
A22: =+A10 -> 2 | B22: 0 | C22: 0 | D22: 0 | I22: ='CONTRATAÇÃO DE PESSOAL'!AH20 -> 0
A23: SUBTOTAL | I23: =SUM(I21:I22) -> 52778
A25: TOTAL (pessoal + encargos sociais + obrigações patronais) | I25: =I17+I11+I23 -> 296318
A28: 339020 BOLSA DE ENSINO, PESQUISA E EXTENSÃO | M28: 3
A30: Item | B30: CPF | C30: BENEFICIÁRIO | D30: MODALIDADE | E30: CATEGORIA/ TITULAÇÃO | F30: VALOR DA BOLSA (R$) | H30: QUANT. MESES | I30: VALOR BOLSA (R$) | K30: 0
A31: =K31 -> 1 | I31: =+F31*H31 -> 0 | K31: =K30+1 -> 1
A32: =K32 -> 2 | I32: =+F32*H32 -> 0 | K32: =K31+1 -> 2
A33: =K33 -> 3 | I33: =+F33*H33 -> 0 | K33: =K32+1 -> 3
A34: TOTAL BOLSA DE ENSINO, PESQUISA E EXTENSÃO | I34: =SUM(I31:I33) -> 0
A37: 339018.01 ESTUDANTE - BOLSA ESTÁGIO | M37: 4
A38: Nº | B38: CPF | C38: ESTUDANTE | D38: INSTITUIÇÃO DE ENSINO | E38: CURSO / Nº MATRICULA | F38: QUANT. MESES | G38: VALOR BOLSA (R$) | I38: TOTAL (R$) | K38: 0
A39: =K39 -> 1 | I39: =F39*G39 -> 0 | K39: =K38+1 -> 1
A40: =K40 -> 2 | I40: =F40*G40 -> 0 | K40: =K39+1 -> 2
A41: =K41 -> 3 | I41: =F41*G41 -> 0 | K41: =K40+1 -> 3
A42: =K42 -> 4 | I42: =F42*G42 -> 0 | K42: =K41+1 -> 4
A43: TOTAL BOLSA ESTÁGIO | I43: =SUM(I39:I42) -> 0
A45: 339039 SERVIÇO DE TERCEIRO PESSOA JURÍDICA - SEGURO ESTÁGIO
A46: Nº | B46: ESTUDANTE | I46: VALOR SEGURO (R$)
A47: =A39 -> 1 | B47: =C39 -> 0 | I47: =F39*1.38 -> 0
A48: =A40 -> 2 | B48: =C40 -> 0 | I48: =F40*1.38 -> 0
A49: =A41 -> 3 | B49: =C41 -> 0 | I49: 0
A50: =A42 -> 4 | B50: =C42 -> 0 | I50: 0
A51: TOTAL DO SEGURO | I51: =SUM(I47:I50) -> 0
A54: 339018.02 AUXILIO FINANCEIRO A ESTUDANTES | M54: 2
A55: Item | B55: LOCALIDADE | D55: FINALIDADE | G55: QUANT. | H55: VALOR UNIT. (R$) | I55: TOTAL (R$) | J55: Vr Total da Diária
A56: =K56 -> 1 | I56: =G56*H56 -> 0 | K56: =K55+1 -> 1
A57: =K57 -> 2 | I57: =G57*H57 -> 0 | K57: =K56+1 -> 2
A58: TOTAL DE AUXILIO FINANCEIRO A ESTUDANTES | I58: =SUM(I56:I57) -> 0
A61: 339036 CONTRATAÇÃO SERVIÇOS DE TERCEIROS PESSOA FÍSICA | M61: 7 | O61: Tabela para Cálculo dos Descontos | AK61: Tabela Progressiva Mensal de IRRF | AR61: Tabela de Contribuição Mensal do INSS
A62: Item | B62: DESCRIÇÃO DETALHADA DO SERVIÇO A SER CONTRATADO PARA O PROGRAMA / PROJETO | F62: QUANT. | G62: VALOR DA PARCELA (R$) | I62: VALOR BRUTO (R$) | K62: 0 | O62: Valor Líquido | P62: Alíquota do ISS | Q62: ISS | R62: INSS | S62: Valor descontado do INSS | T62: IR | U62: 2ª Faixa (IR) | V62: 3ª Faixa (IR) | W62: 4ª Faixa (IR) | X62: 5ª Faixa (IR) | AK62: Ano-calendário 2023 | AR62: 1º de janeiro de 2023
A63: =K63 -> 1 | F63: 0 | G63: 0 | I63: =F63*G63 -> 0 | K63: =K62+1 -> 1 | O63: =G63-Q63-R63-T63 -> 0 | P63: 0.05 | Q63: =ROUND(G63*P63,2) -> 0 | R63: =ROUND(IF(G63>$AT$68,$AT$68*11%,G63*11%),2) -> 0 | S63: =G63-R63 -> 0 | T63: =SUM(U63:X63) -> 0 | U63: =ROUNDDOWN(IF($S63>$AM$65,($AM$65-$AM$64)*$AN$65,IF(AND($S63>=$AK$65,$S63<=$AM$65),($S63-$AK$65)*$AN$65,0)),2) -> 0 | V63: =ROUNDDOWN(IF($S63>$AM$66,($AM$66-$AM$65)*$AN$66,IF(AND($S63>=$AK$66,$S63<=$AM$66),($S63-$AK$66)*$AN$66,0)),2) -> 0 | W63: =ROUNDDOWN(IF($S63>$AM$67,($AM$67-$AM$66)*$AN$67,IF(AND($S63>=$AK$67,$S63<=$AM$67),($S63-$AK$67)*$AN$67,0)),2) -> 0 | X63: =ROUNDDOWN(IF($S63>$AM$68,($S63-$AM$68)*$AN$68,0),2) -> 0 | AK63: Base de Cálculo Mensal em R$ | AN63: Alíquota | AO63: Dedução | AR63: Base de Cálculo Mensal em R$ | AU63: Alíquota | AV63: Dedução
A64: 2 | I64: =F64*G64 -> 0 | K64: =K63+1 -> 2 | O64: 0 | P64: 0.05 | Q64: =ROUND(G64*P64,2) -> 0 | R64: 0 | S64: 0 | T64: =SUM(U64:X64) -> 0 | U64: 0 | V64: 0 | W64: 0 | X64: 0 | AJ64: 1 | AK64: 0.01 | AL64: até | AM64: 1903.98 | AN64: 0 | AR64: 0.01 | AS64: até | AT64: 1302 | AU64: 0.075
A65: 3 | I65: 0 | K65: 3 | O65: 0 | P65: 0.05 | Q65: 0 | R65: 0 | S65: 0 | T65: 0 | U65: 0 | V65: 0 | W65: 0 | X65: 0 | AJ65: 2 | AK65: 1903.99 | AL65: até | AM65: 2826.65 | AN65: 0.075 | AO65: 142.8 | AR65: =AT64+0.01 -> 1302.01 | AS65: até | AT65: 2571.29 | AU65: 0.09 | AV65: =(AU65-AU64)*AT64 -> 19.53
A66: 4 | I66: 0 | K66: 4 | O66: 0 | P66: 0.05 | Q66: 0 | R66: 0 | S66: 0 | T66: 0 | U66: 0 | V66: 0 | W66: 0 | X66: 0 | AJ66: 3 | AK66: 2826.66 | AL66: até | AM66: 3751.05 | AN66: 0.15 | AO66: 354.8 | AR66: =AT65+0.01 -> 2571.3 | AS66: até | AT66: 3856.94 | AU66: 0.12 | AV66: =(AU66-AU65)*AT65+AV65 -> 96.6687
A67: 5 | I67: 0 | K67: 5 | O67: 0 | P67: 0.05 | Q67: 0 | R67: 0 | S67: 0 | T67: 0 | U67: 0 | V67: 0 | W67: 0 | X67: 0 | AJ67: 4 | AK67: 3751.05 | AL67: até | AM67: 4664.68 | AN67: 0.225 | AO67: 636.13 | AR67: 3856.95 | AS67: até | AT67: 7507.49 | AU67: 0.14 | AV67: 148.71
A68: 6 | I68: 0 | K68: 6 | O68: 0 | P68: 0.05 | Q68: 0 | R68: 0 | S68: 0 | T68: 0 | U68: 0 | V68: 0 | W68: 0 | X68: 0 | AJ68: 5 | AL68: acima de | AM68: 4664.69 | AN68: 0.275 | AO68: 869.36 | AS68: acima de | AT68: 7507.49 | AU68: 0.14 | AV68: =AT68*AU68-AV67 -> 902.3386
A69: 7 | I69: 0 | K69: 7 | O69: 0 | P69: 0.05 | Q69: 0 | R69: 0 | S69: 0 | T69: 0 | U69: 0 | V69: 0 | W69: 0 | X69: 0
A70: TOTAL DO SERVIÇO DE TERCEIROS PESSOA FISICA | I70: =SUM(I63:I69) -> 0
A73: 339014 DIÁRIAS | M73: 2
A74: Item | B74: LOCALIDADE | D74: FINALIDADE | G74: QUANT. | H74: VALOR UNIT. (R$) | I74: TOTAL (R$) | J74: Vr Total da Diária
A75: =K75 -> 1 | I75: =G75*H75 -> 0 | K75: =K74+1 -> 1
A76: =K76 -> 2 | I76: =G76*H76 -> 0 | K76: =K75+1 -> 2
A77: TOTAL DE DIÁRIAS | I77: =SUM(I75:I76) -> 0
A80: 339033 PASSAGEM E DESPESA COM LOCOMOÇÃO | M80: 2
A81: Item | B81: DESTINO | E81: MEIO DE TRANSPORTE | G81: QUANT. | H81: VALOR UNIT. (R$) | I81: TOTAL (R$) | J81: Vr Total da Diária | K81: 0
A82: =K82 -> 1 | I82: =G82*H82 -> 0 | K82: =K81+1 -> 1
A83: =K83 -> 2 | I83: =G83*H83 -> 0 | K83: =K82+1 -> 2
A84: TOTAL | I84: =SUM(I82:I83) -> 0
A87: 339030 MATERIAL DE CONSUMO | M87: 2
A88: Item | B88: CATEGORIA | I88: TOTAL (R$) | J88: Vr Total da Diária | K88: 0
A89: =K89 -> 1 | K89: =K88+1 -> 1
A90: =K90 -> 2 | K90: =K89+1 -> 2
A91: TOTAL | I91: =SUM(I89:I90) -> 0
A94: 339039 SERVIÇO TERCEIRO PESSOA JURÍDICA | M94: 2
A95: Item | B95: CATEGORIA | D95: DESCRIÇÃO | G95: QUANT. | H95: VALOR UNIT. (R$) | I95: TOTAL (R$) | K95: 0
A96: =K96 -> 1 | I96: =G96*H96 -> 0 | K96: =K95+1 -> 1
A97: =K97 -> 2 | I97: =G97*H97 -> 0 | K97: =K96+1 -> 2
A98: TOTAL | I98: =SUM(I96:I97) -> 0
A100: INVESTIMENTO
A102: 449051 OBRAS E INSTALAÇÕES | M102: 2
A103: Item | B103: DESCRIÇÃO | I103: TOTAL (R$) | K103: 0
A104: =K104 -> 1 | K104: =K103+1 -> 1
A105: =K105 -> 2 | K105: =K104+1 -> 2
A106: TOTAL | I106: =SUM(I104:I105) -> 0
A109: 449052 EQUIPAMENTO E MATERIAL PERMANENTE | M109: 2
A110: Item | B110: CATEGORIA | D110: DESCRIÇÃO | G110: QUANT. | H110: VALOR UNIT. (R$) | I110: TOTAL (R$) | J110: Vr Total da Diária | K110: 0
A111: =K111 -> 1 | I111: =G111*H111 -> 0 | K111: =K110+1 -> 1
A112: =K112 -> 2 | I112: =G112*H112 -> 0 | K112: =K111+1 -> 2
A113: TOTAL | I113: =SUM(I111:I112) -> 0
A115: 339047 OBRIGAÇÕES TRIBUTÁRIAS CONTRIBUTIVAS
A116: ENCARGOS SOCIAIS | I116: VALOR (R$)
A117: INSS Empresa (20% s/ STPF) | I117: =+I70*20% -> 0
A118: TOTAL | I118: =I117 -> 0
A120: 339039 SERVIÇOS DE TERCEIRO PESSOA JURÍDICA
A121: ESPECIFICAÇÃO | F121: PERCENT. | G121: BASE DE CÁLCULO | I121: VALOR (R$)
A122: Tarifas bancárias | F122: 0.015 | G122: =I25+I34+I43+I70+I77+I84+I91+I98+I106+I113+I118+I130+I123+I51+I58 -> 325949.8 | I122: =F122*G122 -> 4889.247
A123: Gestão administrativo-financeira | F123: 0.1 | G123: =I25+I34+I43+I70+I77+I84+I91+I98+I106+I113+I118+I130+I51+I58 -> 296318 | I123: =F123*G123 -> 29631.8
A124: TOTAL | I124: =SUM(I122:I123) -> 34521.047
A126: 339041 CONTRIBUIÇÕES
A127: DESCRIÇÃO | C127: ÓRGÃO | E127: PERCENTUAL | G127: BASE DE CÁLCULO | I127: VALOR (R$)
A128: Gestão Acadêmica - UFAL | G128: =+I25+I34+I43+I70+I77+I84+I91+I98+I106+I113+I118+I51+I58 -> 296318 | I128: =E128*G128 -> 0
A129: Gestão Acadêmica - U.A. | G129: =+I25+I34+I43+I70+I77+I84+I91+I98+I106+I113+I118+I51+I58 -> 296318 | I129: =+G129*E129 -> 0
A130: TOTAL | I130: =SUM(I128:I129) -> 0
A132: TOTAL GERAL | I132: =I25+totalRubrica02+totalRubrica03+I51+rubricaFim_13+totalRubrica04+totalRubrica05+totalRubrica06+totalRubrica07+totalRubrica08+totalRubrica09+totalRubrica10+totalRubrica12+I124+I130 -> 330839.047
AN138: Meio de Transporte | AO138: Material de Consumo | AP138: Material Permanente | AQ138: Serviços de Terceiros Pessoa Jurídica | AR138: Categoria / Titulação: pesquisa | AS138: Servidor: Pesquisa | AT138: Servidor: Outros
AN139: Áereo | AO139: Alimentos para Animais | AP139: Acessório para Automóveis | AQ139: Aquisição de Softwares de Aplicação | AR139: Pesquisa | AS139: Servidor Público | AT139: Servidor UFAL
AN140: Rodoviário | AO140: Animais para Pesquisa e Abate | AP140: Aparelhos de Medição e Orientação | AQ140: Armazenagem | AR140: Ensino | AS140: Servidor UFAL | AT140: Servidor IFAL
AN141: Automóvel | AO141: Aquisição de Software de Base | AP141: Aparelhos e Equipamentos de Comunicação | AQ141: Assinaturas de Periódicos e Anuidades | AR141: Extensão | AS141: Servidor IFAL | AT141: Outros
AN142: Outros | AO142: Combustível e lubrificantes | AP142: Aparelhos e Equipamentos p/ Esportes e Diversões | AQ142: Comissão e Corretagens | AR142: Inovação Tecnológica | AS142: Militar
AO143: Ferramentas | AP143: Aparelhos e Utensílios Domésticos | AQ143: Condomínios | AS143: Discente
AO144: Gás Engarrafado | AP144: Aparelhos, Equipamentos, Utensílios médico e Hospitalares | AQ144: Confecção de Material de Acondicionamento e Embalagem | AS144: Outros
AO145: Gêneros de Alimentação | AP145: Aparelhos, Equipamentos, Utensílios Laboratoriais e odontológicos | AQ145: Confecção de Uniformes e outros
AO146: Mat. e Medicamentos para Uso Veterinário | AP146: Coleções e Materiais Bibliográficos | AQ146: Despesas com Teleprocessamento
AO147: Mat. Bibliográfico Não Imobilizado | AP147: Discotecas e Filmotecas | AQ147: Direitos Autorais
AO148: Mat. Biológico e odontológico | AP148: Embarcações | AQ148: Exposição Congressos e Conferências
AO149: Mat. de Caça e Pesca | AP149: Equipamento de Processamento de Dados | AQ149: Fornecimento de Alimentação
AO150: Mat. de Cama Mesa e Banho | AP150: Equipamentos de Áudio Vídeo e Foto | AQ150: Fretes e Transportes de Ecomendas
AO151: Mat. de Copa e Cozinha | AP151: Equipamentos de Mergulho e Salvamento | AQ151: Hospedagem
AO152: Mat. de Coudelaria ou de Uso Zootécnico | AP152: Equipamentos e Sistemas de Proteção e Vigilãncia Ambiental | AQ152: Limpeza e Conservação
AO153: Mat. de Expediente | AP153: Equipamentos e Utensílios Hidráulicos e Elétricos | AQ153: Locação Bens móveis e outras naturezas e intangíveis
AO154: Mat. de Limpeza e Produção de Higienização | AP154: Equipamentos, peças e acessórios marítmos | AQ154: Locação de Imóveis
AO155: Mat. de Manobra e Patrulhamento | AP155: Instrumentos Musicias e Artísticos | AQ155: Locação de Máquinas e Equipamentos
AO156: Mat. de Processamento de Dados | AP156: Máquinas e Equipamentos Agrícolas e Rodoviários | AQ156: Locação de Software
AO157: Mat. de Proteção e Segurança | AP157: Máquinas e Equipamentos de Natureza Industriais | AQ157: Manutenção Conservação de Equip.Processamento de Dados
AO158: Mat. de Sinalização Visual e Afins | AP158: Máquinas e Equipamentos Energéticos | AQ158: Manutenção de Software
AO159: Mat. Educativo e Esportivo | AP159: Máquinas e Equipamentos Gráficos | AQ159: Manutenção e Conservação de Bens Imóveis
AO160: Material Elétrico e Eletrônico | AP160: Máquinas, Ferramentas e Utensílios de Oficina | AQ160: Manutenção e Conservação de Bens Móveis de outras Naturezas
AO161: Mat. Farmacológico e Hospitalar | AP161: Máquinas, Instalações e Utensílios de Escritório | AQ161: Manutenção e Conservação de Estradas e Vias
AO162: Mat. Laboratorial e Químico | AP162: Máquinas, Utensílios e Equipamentos Diversos | AQ162: Manutenção e Conservação de Maq. e Equipamentos
AO163: Mat. para Audio. Video e Foto | AP163: Mobiliários em Geral | AQ163: Manutenção e Conservação de Veículos
AO164: Mat. para Comunicações | AP164: Obras de Arte e Peças de Museus | AQ164: Produções Jornalísticas
AO165: Mat. para Manutenção de Bens Imóveis | AP165: Peças não Incorporáveis a Imóveis | AQ165: Seguros em Geral
AO166: Mat. para Manutenção de Bens Móveis | AP166: Semoventes e Equipamentos de Montaria | AQ166: Serviço Médico-Hospitalar Odontológico e Laboratoriais
AO167: Mat. para Manutenção de Veículos | AP167: Veículos Diversos | AQ167: Serviços Bancários
AO168: Mat. para Utilização em Gráfica | AP168: Outros Materiais Permanentes | AQ168: Serviços de Água e Esgoto
AO169: Mat. Técnico p/ Seleção e Treinamento | AQ169: Serviços de Análises e Pesquisas Científicas
AO170: Sementes, Mudas de Plantas e Insumos | AQ170: Serviços de áudio, vídeo e foto
AO171: Uniformes, Tecidos e Aviamentos | AQ171: Serviços de Comunicação em Geral
AO172: Outros Materias de Consumo | AQ172: Serviços de Cópias e Reprodução de Documentos
AQ173: Serviços de Energia Elétrica
AQ174: Serviços de Gás
AQ175: Serviços de Perícias Médicas por Benefícios
AQ176: Serviços de Processamento de Dados
AQ177: Serviços de publicidade e propaganda
AQ178: Serviços de Seleção e Treinamento
AQ179: Serviços de Telecomunicação
AQ180: Serviços Gráficos
AQ181: Serviços Judiciários
AQ182: Serviços Técnicos e Profissioniais
AQ183: Transporte de Servidores
AQ184: Vale Transporte
AQ185: Outros Serviços de Terceiros Pessoa Jurídica

Sheet CONTRATAÇÃO DE PESSOAL
A8: DETALHAMENTO DOS ENCARGOS SOCIAIS E DO FUNDO DE COBERTURA DO PASSIVO TRABALHISTA - FCPT
L9: VALE TRANSPORTE SIM OU NÃO? SE SIM, INFORMAR VALOR DIÁRIO
A10: AVISO PRÉVIO INDENIZADO? | C10: NÃO | D10: =+IF(A10=0," PREENCHA O CAMPO AO LADO","") ->  | M10: SIM | N10: SIM | O10: Valor Médio Vale transporte
M11: NÃO | O11: 0
K15: FCPT
A17: PROFISSIONAIS | B17: REMUNERAÇÃO PREVISTOS NO ELEMENTO DE DESESA 319011 | G17: ENCARGOS SOCIAIS SOBRE SALÁRIO PREVISTOS NO ELEMENTO DE DESPESA 319013 | K17: OBRIGAÇÕES PATRONAIS SOBRE FÉRIAS, 13º SALÁRIO | T17: RESCISÃO | U17: CUSTOS TOTAIS | V17: MESES DE EXECUÇÃO | W17: CUSTO TOTAL EXECUÇÃO | X17: AVISO PRÉVIO INDENIZADO | Y17: AVISO PRÉVIO TRABALHADO | Z17: ENCARGO SOBRE AVISO INDENIZADO | AA17: FCPT MENSAL | AB17: VALE TRANSPORTE | AC17: EXAME ADMISSIONAL/DEMISSIONAL | AD17: TOTAL DAS RUBRICAS | AI17: TOTAL GERAL | AJ17: TOTAL 11 e 13
A18: FUNÇÃO | B18: QUANT. FUNCION. | C18: SALÁRIO | D18: GRATIFICAÇÃO | E18: ADICIONAIS | F18: TOTAL SALÁRIOS | G18: FGTS | H18: INSS | I18: PIS | J18: TOTAL | K18: 13º SAL. 1/12 AVOS | L18: FÉRIAS + 1/3 - 1/12 AVOS | M18: 13º AVISO PRÉVIO INDENIZADO | N18: FÉRIAS AVISO PRÉVIO INDENIZADO | O18: TOTAL | P18: FGTS | Q18: INSS | R18: PIS | S18: TOTAL | T18: MULTA 40% | U18: MENSAL | V18: QUANTIDADE (meses) | W18: VALOR TOTAL | X18: VALOR TOTAL | Y18: VALOR TOTAL | Z18: VALOR TOTAL | AA18: VALOR | AB18: VALOR | AC18: (35,00x2) | AD18: 31.90.11 | AE18: 31.90.13 | AF18: 33.90.36 | AG18: 33.90.39 | AH18: 999999
A19: =+IF('PREVISÃO DE DESPESA'!C9=0," ",'PREVISÃO DE DESPESA'!C9) ->  | B19: 1 | C19: =+'PREVISÃO DE DESPESA'!F9 -> 5000 | F19: =+(C19+D19+E19)*B19 -> 5000 | G19: =(F19)*8% -> 400 | H19: =C19*26.3% -> 1315 | I19: =(F19)*1% -> 50 | J19: =SUM(G19:I19) -> 1765 | K19: =F19/12 -> 416.6666667 | L19: =F19*11.11/100 -> 555.5 | M19: =+IF($C$10="NÃO",0,IF(AND(V19>=1,V19<60),F19/12*1,IF(AND(V19>=60,V19<=168),F19/12*2,IF(AND(V19>168,V19<=240),F19/12*3,F19/12*3)))) -> 0 | N19: =+IF($C$10="NÃO",0,IF(AND(V19>=1,V19<60),F19/12*1,IF(AND(V19>=60,V19<=168),F19/12*2,IF(AND(V19>168,V19<=240),F19/12*3,F19/12)))) -> 0 | O19: =SUM(K19:N19) -> 972.1666667 | P19: =(K19+M19+(K19/3)+Y19)*8% -> 164.4444444 | Q19: =(K19+(K19/3))*26.3% -> 146.1111111 | R19: =(K19+M19+(K19/3))*1% -> 5.555555556 | S19: =SUM(P19:R19) -> 316.1111111 | T19: =(((F19+K19+M19+(K19/3))*(8%)*40%)) -> 177.7777778 | U19: =+F19+J19+O19+T19+S19 -> 8231.055556 | V19: =+'PREVISÃO DE DESPESA'!H9 -> 36 | W19: =+U19*V19 -> 296318 | X19: =+IF($C$10="NÃO",0,'PREVISÃO DE DESPESA'!F9/30*IF(+'PREVISÃO DE DESPESA'!H9<12,30,IF(AND(+'PREVISÃO DE DESPESA'!H9>=12,+'PREVISÃO DE DESPESA'!H9<24),33,IF(AND(+'PREVISÃO DE DESPESA'!H9>=24,+'PREVISÃO DE DESPESA'!H9<36),36,IF(AND(+'PREVISÃO DE DESPESA'!H9>=36,+'PREVISÃO DE DESPESA'!H9<48),39,IF(AND(+'PREVISÃO DE DESPESA'!H9>=48,+'PREVISÃO DE DESPESA'!H9<60),42,IF(AND(+'PREVISÃO DE DESPESA'!H9>=60,+'PREVISÃO DE DESPESA'!H9<72),45,IF(AND(+'PREVISÃO DE DESPESA'!H9>=72,+'PREVISÃO DE DESPESA'!H9<84),48,IF(AND(+'PREVISÃO DE DESPESA'!H9>=84,+'PREVISÃO DE DESPESA'!H9<96),51,IF(AND(+'PREVISÃO DE DESPESA'!H9>=96,+'PREVISÃO DE DESPESA'!H9<108),54,IF(AND(+'PREVISÃO DE DESPESA'!H9>=108,+'PREVISÃO DE DESPESA'!H9<120),57,IF(AND(+'PREVISÃO DE DESPESA'!H9>=120,+'PREVISÃO DE DESPESA'!H9<132),60,IF(AND(+'PREVISÃO DE DESPESA'!H9>=132,+'PREVISÃO DE DESPESA'!H9<144),63,IF(AND(+'PREVISÃO DE DESPESA'!H9>=144,+'PREVISÃO DE DESPESA'!H9<156),66,IF(AND(+'PREVISÃO DE DESPESA'!H9>=156,+'PREVISÃO DE DESPESA'!H9<168),69,IF(AND(+'PREVISÃO DE DESPESA'!H9>=168,+'PREVISÃO DE DESPESA'!H9<180),72,IF(AND(+'PREVISÃO DE DESPESA'!H9>=180,+'PREVISÃO DE DESPESA'!H9<192),75,IF(AND(+'PREVISÃO DE DESPESA'!H9>=192,+'PREVISÃO DE DESPESA'!H9<204),78,IF(AND(+'PREVISÃO DE DESPESA'!H9>=204,+'PREVISÃO DE DESPESA'!H9<216),81,IF(AND(+'PREVISÃO DE DESPESA'!H9>=216,+'PREVISÃO DE DESPESA'!H9<228),84,IF(AND(+'PREVISÃO DE DESPESA'!H9>=228,+'PREVISÃO DE DESPESA'!H9<240),87,90))))))))))))))))))))) -> 0 | Y19: =IF($C$10="SIM",0,'PREVISÃO DE DESPESA'!F9/30*IF('PREVISÃO DE DESPESA'!H9<12,30, IF(AND('PREVISÃO DE DESPESA'!H9>=12,'PREVISÃO DE DESPESA'!H9<24),33-30, IF(AND('PREVISÃO DE DESPESA'!H9>=24,'PREVISÃO DE DESPESA'!H9<36),36-30, IF(AND('PREVISÃO DE DESPESA'!H9>=36,'PREVISÃO DE DESPESA'!H9<48),39-30, IF(AND('PREVISÃO DE DESPESA'!H9>=48,'PREVISÃO DE DESPESA'!H9<60),42-30, IF(AND('PREVISÃO DE DESPESA'!H9>=60,'PREVISÃO DE DESPESA'!H9<72),45-30, IF(AND('PREVISÃO DE DESPESA'!H9>=72,'PREVISÃO DE DESPESA'!H9<84),48-30, IF(AND('PREVISÃO DE DESPESA'!H9>=84,'PREVISÃO DE DESPESA'!H9<96),51-30, IF(AND('PREVISÃO DE DESPESA'!H9>=96,'PREVISÃO DE DESPESA'!H9<108),54-30, IF(AND('PREVISÃO DE DESPESA'!H9>=108,'PREVISÃO DE DESPESA'!H9<120),57-30, IF(AND('PREVISÃO DE DESPESA'!H9>=120,'PREVISÃO DE DESPESA'!H9<132),60-30, IF(AND('PREVISÃO DE DESPESA'!H9>=132,'PREVISÃO DE DESPESA'!H9<144),63-30, IF(AND('PREVISÃO DE DESPESA'!H9>=144,'PREVISÃO DE DESPESA'!H9<156),66-30, IF(AND('PREVISÃO DE DESPESA'!H9>=156,'PREVISÃO DE DESPESA'!H9<168),69-30, IF(AND('PREVISÃO DE DESPESA'!H9>=168,'PREVISÃO DE DESPESA'!H9<180),72-30, IF(AND('PREVISÃO DE DESPESA'!H9>=180,'PREVISÃO DE DESPESA'!H9<192),75-30, IF(AND('PREVISÃO DE DESPESA'!H9>=192,'PREVISÃO DE DESPESA'!H9<204),78-30, IF(AND('PREVISÃO DE DESPESA'!H9>=204,'PREVISÃO DE DESPESA'!H9<216),81-30, IF(AND('PREVISÃO DE DESPESA'!H9>=216,'PREVISÃO DE DESPESA'!H9<228),84-30, IF(AND('PREVISÃO DE DESPESA'!H9>=228,'PREVISÃO DE DESPESA'!H9<240),87-30, 90-30))))))))))))))))))))) -> 1500 | Z19: =+(X19*8/100)+(((X19)*(8%)*40%)) -> 0 | AA19: =SUM(O19+S19+T19)+((X19+Z19)/12) -> 1466.055556 | AB19: =+(IF((22*$O$11)>=C19*6%,(22*$O$11)-(C19*6%),0))*B19*V19 -> 0 | AC19: =IF(V19=0,0,(30*(1+ROUNDUP(V19/12,0))*(1+20/100)))-2 -> 142 | AD19: =+(F19*V19) -> 180000 | AE19: =J19*V19 -> 63540 | AF19: =+AC19 -> 142 | AG19: =(+AB19) -> 0 | AH19: =+((O19+S19+T19)*V19)+(X19+Z19) -> 52778 | AI19: =SUM(AD19:AH19) -> 296460 | AJ19: =SUM(AD19:AE19) -> 243540
A20: =+IF('PREVISÃO DE DESPESA'!C10=0," ",'PREVISÃO DE DESPESA'!C10) ->  | B20: 1 | C20: =+'PREVISÃO DE DESPESA'!F10 -> 0 | F20: =+(C20+D20+E20)*B20 -> 0 | G20: =(F20)*8% -> 0 | H20: =C20*26.3% -> 0 | I20: =(F20)*1% -> 0 | J20: =SUM(G20:I20) -> 0 | K20: =F20/12 -> 0 | L20: =F20*11.11/100 -> 0 | M20: =+IF($C$10="NÃO",0,IF(AND(V20>=1,V20<60),F20/12*1,IF(AND(V20>=60,V20<=168),F20/12*2,IF(AND(V20>168,V20<=240),F20/12*3,F20/12*3)))) -> 0 | N20: =+IF($C$10="NÃO",0,IF(AND(V20>=1,V20<60),F20/12*1,IF(AND(V20>=60,V20<=168),F20/12*2,IF(AND(V20>168,V20<=240),F20/12*3,F20/12)))) -> 0 | O20: =SUM(K20:N20) -> 0 | P20: =(K20+M20+(K20/3))*8% -> 0 | Q20: =(K20+(K20/3))*26.3% -> 0 | R20: =(K20+M20+(K20/3))*1% -> 0 | S20: =SUM(P20:R20) -> 0 | T20: =(((F20+K20+M20+(K20/3))*(8%)*40%)) -> 0 | U20: =+F20+J20+O20+T20+S20 -> 0 | V20: =+'PREVISÃO DE DESPESA'!H10 -> 0 | W20: =+U20*V20 -> 0 | X20: =+IF($C$10="NÃO",0,'PREVISÃO DE DESPESA'!F10/30*IF(+'PREVISÃO DE DESPESA'!H10<12,30,IF(AND(+'PREVISÃO DE DESPESA'!H10>=12,+'PREVISÃO DE DESPESA'!H10<24),33,IF(AND(+'PREVISÃO DE DESPESA'!H10>=24,+'PREVISÃO DE DESPESA'!H10<36),36,IF(AND(+'PREVISÃO DE DESPESA'!H10>=36,+'PREVISÃO DE DESPESA'!H10<48),39,IF(AND(+'PREVISÃO DE DESPESA'!H10>=48,+'PREVISÃO DE DESPESA'!H10<60),42,IF(AND(+'PREVISÃO DE DESPESA'!H10>=60,+'PREVISÃO DE DESPESA'!H10<72),45,IF(AND(+'PREVISÃO DE DESPESA'!H10>=72,+'PREVISÃO DE DESPESA'!H10<84),48,IF(AND(+'PREVISÃO DE DESPESA'!H10>=84,+'PREVISÃO DE DESPESA'!H10<96),51,IF(AND(+'PREVISÃO DE DESPESA'!H10>=96,+'PREVISÃO DE DESPESA'!H10<108),54,IF(AND(+'PREVISÃO DE DESPESA'!H10>=108,+'PREVISÃO DE DESPESA'!H10<120),57,IF(AND(+'PREVISÃO DE DESPESA'!H10>=120,+'PREVISÃO DE DESPESA'!H10<132),60,IF(AND(+'PREVISÃO DE DESPESA'!H10>=132,+'PREVISÃO DE DESPESA'!H10<144),63,IF(AND(+'PREVISÃO DE DESPESA'!H10>=144,+'PREVISÃO DE DESPESA'!H10<156),66,IF(AND(+'PREVISÃO DE DESPESA'!H10>=156,+'PREVISÃO DE DESPESA'!H10<168),69,IF(AND(+'PREVISÃO DE DESPESA'!H10>=168,+'PREVISÃO DE DESPESA'!H10<180),72,IF(AND(+'PREVISÃO DE DESPESA'!H10>=180,+'PREVISÃO DE DESPESA'!H10<192),75,IF(AND(+'PREVISÃO DE DESPESA'!H10>=192,+'PREVISÃO DE DESPESA'!H10<204),78,IF(AND(+'PREVISÃO DE DESPESA'!H10>=204,+'PREVISÃO DE DESPESA'!H10<216),81,IF(AND(+'PREVISÃO DE DESPESA'!H10>=216,+'PREVISÃO DE DESPESA'!H10<228),84,IF(AND(+'PREVISÃO DE DESPESA'!H10>=228,+'PREVISÃO DE DESPESA'!H10<240),87,90))))))))))))))))))))) -> 0 | Z20: =+(X20*8/100)+(((X20)*(8%)*40%)) -> 0 | AA20: =SUM(O20+S20+T20)+((X20+Z20)/12) -> 0 | AB20: =+(IF((22*$O$11)>=C20*6%,(22*$O$11)-(C20*6%),0))*B20*V20 -> 0 | AC20: =IF(V20=0,0,(30*(1+ROUNDUP(V20/12,0))*(1+20/100)))-2 -> -2 | AD20: =+(F20*V20) -> 0 | AE20: =J20*V20 -> 0 | AF20: =+AC20 -> -2 | AG20: =(+AB20) -> 0 | AH20: =+((O20+S20+T20)*V20)+(X20+Z20) -> 0 | AI20: =SUM(AD20:AH20) -> -2 | AJ20: =SUM(AD20:AE20) -> 0
A21: TOTAL | B21: =SUM(B19:B20) -> 2 | C21: =SUM(C19:C20) -> 5000 | F21: =SUM(F19:F20) -> 5000 | G21: 400 | H21: 1315 | I21: 50 | J21: 1765 | K21: 416.6666667 | L21: 555.5 | M21: 0 | N21: 0 | O21: 972.1666667 | P21: 164.4444444 | Q21: 146.1111111 | R21: 5.555555556 | S21: 316.1111111 | T21: 177.7777778 | U21: =+F21+J21+O21+T21+S21 -> 8231.055556 | V21: =SUM(V19:V20) -> 36 | W21: 296318 | X21: 0 | Y21: =SUM(Y19:Y20) -> 1500 | Z21: 0 | AA21: 1466.055556 | AB21: 0 | AC21: 140 | AD21: 180000 | AE21: 63540 | AF21: 140 | AG21: 0 | AH21: 52778 | AI21: 296458 | AJ21: 243540
A298: Anos | B298: Tempo de Serviço (Meses) | C298: Aviso | D298: Projeção
A299: 1 | B299: 12 | C299: 30 | D299: 3 | E299: =C299+D299 -> 33
A300: 2 | B300: =12+B299 -> 24 | C300: 30 | D300: =D299+3 -> 6 | E300: 36
A301: 3 | B301: 36 | C301: 30 | D301: 9 | E301: 39
A302: 4 | B302: 48 | C302: 30 | D302: 12 | E302: 42
A303: 5 | B303: 60 | C303: 30 | D303: 15 | E303: 45
A304: 6 | B304: 72 | C304: 30 | D304: 18 | E304: 48
A305: 7 | B305: 84 | C305: 30 | D305: 21 | E305: 51
A306: 8 | B306: 96 | C306: 30 | D306: 24 | E306: 54
A307: 9 | B307: 108 | C307: 30 | D307: 27 | E307: 57
A308: 10 | B308: 120 | C308: 30 | D308: 30 | E308: 60
A309: 11 | B309: 132 | C309: 30 | D309: 33 | E309: 63
A310: 12 | B310: 144 | C310: 30 | D310: 36 | E310: 66
A311: 13 | B311: 156 | C311: 31 | D311: 39 | E311: 70
A312: 14 | B312: 168 | C312: 32 | D312: 42 | E312: 74
A313: 15 | B313: 180 | C313: 33 | D313: 45 | E313: 78
A314: 16 | B314: 192 | C314: 34 | D314: 48 | E314: 82
A315: 17 | B315: 204 | C315: 35 | D315: 51 | E315: 86
A316: 18 | B316: 216 | C316: 36 | D316: 54 | E316: 90

Sheet RESUMO
A6: PROGRAMA/PROJETO: | B6: ='PREVISÃO DA RECEITA'!E7 -> 0
A7: COORDENADOR(A): | B7: ='PREVISÃO DA RECEITA'!E8 -> 0
A8: PERÍODO DE EXECUÇÃO: | B8: ='PREVISÃO DA RECEITA'!E9 -> 0
A9: CÓDIGO DO PROJETO: | B9: ='PREVISÃO DA RECEITA'!E10 -> 0 | C9: CONTA CORRENTE: | D9: ='PREVISÃO DA RECEITA'!L10 -> 0
A11: RESUMO DA PROPOSTA ORÇAMENTÁRIA
A13: 1.RECEITAS
A14: NOME DO ÓRGÃO FINANCIADOR | C14: ORIGEM DOS RECURSOS | D14: VALOR
A15: =+'PREVISÃO DA RECEITA'!A16:G16 -> NEOENERGIA | C15: =+'PREVISÃO DA RECEITA'!H16 -> 0 | D15: =+'PREVISÃO DA RECEITA'!O16 -> 0
A16: =+'PREVISÃO DA RECEITA'!A17:G17 -> 0 | C16: =+'PREVISÃO DA RECEITA'!H17 -> 0 | D16: =+'PREVISÃO DA RECEITA'!O17 -> 0
A17: TOTAL DA PREVISÃO DE RECEITA | D17: =SUM(D15:D16) -> 0
A18: 2. DESPESAS
A19: CÓDIGO | B19: CATEGORIA | D19: VALOR
A20: 30.00.00 | B20: Despesas Operacionais | D20: =SUM(D21+D25) -> 330839.047
A21: 31.90.00 | B21: Pessoal e encargos Sociais | D21: =SUM(D22:D24) -> 296318
A22: 31.90.11 | B22: Despesas com Pessoal | D22: =+'PREVISÃO DE DESPESA'!I11 -> 180000
A23: 31.90.13 | B23: Encargos Sociais | D23: =+'PREVISÃO DE DESPESA'!I17 -> 63540
A24: 99.99.99 | B24: Obrigações Patronais sobre Férias, 13º Salário e Rescisão Contratual | D24: ='PREVISÃO DE DESPESA'!I23 -> 52778
A25: 33.90.00 | B25: Outras Despesas Operacionais | D25: =SUM(D26:D34) -> 34521.047
A26: 33.90.14 | B26: Diárias Pessoal | D26: =+'PREVISÃO DE DESPESA'!I77 -> 0
A27: 33.90.18 | B27: Bolsa Estágio e Auxilio Financeiro a Estudantes | D27: =+'PREVISÃO DE DESPESA'!I43+'PREVISÃO DE DESPESA'!I58 -> 0
A28: 33.90.20 | B28: Bolsa de Ensino, Pesquisa e Extensão | D28: =+'PREVISÃO DE DESPESA'!I34 -> 0
A29: 33.90.30 | B29: Material de Consumo | D29: =+'PREVISÃO DE DESPESA'!I91 -> 0
A30: 33.90.33 | B30: Passagens e Despesas com Locomoção | D30: =+'PREVISÃO DE DESPESA'!I84 -> 0
A31: 33.90.36 | B31: Outros Serviços de Terceiros Pessoa Física | D31: =+'PREVISÃO DE DESPESA'!I70 -> 0
A32: 33.90.39 | B32: Outros Serviços de Terceiros Pessoa Jurídica | D32: =+'PREVISÃO DE DESPESA'!I98+'PREVISÃO DE DESPESA'!I124+'PREVISÃO DE DESPESA'!I51 -> 34521.047
A33: 33.90.41 | B33: Contribuições | D33: =+'PREVISÃO DE DESPESA'!I130 -> 0
A34: 33.90.47 | B34: Obrigações Tributárias e Contributivas | D34: =+'PREVISÃO DE DESPESA'!I118 -> 0
A35: 40.00.00 | B35: Investimentos | D35: =SUM(D36) -> 0
A36: 44.90.00 | B36: Investimentos | D36: =SUM(D37:D38) -> 0
A37: 44.90.51 | B37: Obras e Instalações | D37: =+'PREVISÃO DE DESPESA'!I106 -> 0
A38: 44.90.52 | B38: Equipamentos e Material Permanente | D38: =+'PREVISÃO DE DESPESA'!I113 -> 0
A39: TOTAL DA PREVISÃO DE DESPESAS E INVESTIMENTOS | D39: =SUM(D20+D35) -> 330839.047

Sheet ACOMPANHAMENTO 1 (hidden)
A1: DATA INÍCIO | B1: 2006-08-01
A2: DATA FIM | B2: 2007-08-01
A3: VIGÊNCIA | B3: =dias(B1,B2) -> 365 | C3: dias
A6: CRONOGRAMA DE DESEMBOLSO
A7: DATA | B7: VALOR | C7: DATA DE RECEB. | D7: VALOR RECEBIDO | E7: PERÍODOS | L7: 3
E8: 1 | F8: 2 | G8: 3 | H8: 4 | I8: 5 | P8: 1 | Q8: 2 | R8: 3 | S8: 4 | T8: 5 | U8: valor1 | V8: valor2 | W8: valor3 | X8: valor4 | Y8: valor5
A9: 2006-08-01 | B9: 1000 | C9: 2006-08-01 | D9: 1000 | E9: X | F9: X | G9: X | H9: X | J9: =J8+1 -> 1 | P9: =IF(AND($C9<=$B$16,NOT(ISBLANK($C9)),UPPER(E9)="X"),1,0) -> 1 | Q9: =IF(AND($C9<=$B$40,NOT(ISBLANK($C9)),UPPER(F9)="X"),1,0) -> 1 | R9: =IF(AND($C9<=$B$64,NOT(ISBLANK($C9)),UPPER(G9)="X"),1,0) -> 1 | S9: =IF(AND($C9<=$B$88,NOT(ISBLANK($C9)),UPPER(H9)="X"),1,0) -> 1 | T9: =IF(AND($C9<=$B$112,NOT(ISBLANK($C9)),UPPER(I9)="X"),1,0) -> 0 | U9: =IF(SUM($P9:$S9)=0,0,$D9/SUM($P9:$S9)*P9) -> 250 | V9: 250 | W9: 250 | X9: 250 | Y9: =IF($T9=0,0,$D9*$T9) -> 0
A10: 2006-10-10 | B10: 700 | C10: 2006-10-10 | D10: 700 | E10: X | F10: X | G10: X | H10: X | J10: =J9+1 -> 2 | P10: =IF(AND($C10<=$B$16,NOT(ISBLANK($C10)),UPPER(E10)="X"),1,0) -> 1 | Q10: =IF(AND($C10<=$B$40,NOT(ISBLANK($C10)),UPPER(F10)="X"),1,0) -> 1 | R10: =IF(AND($C10<=$B$64,NOT(ISBLANK($C10)),UPPER(G10)="X"),1,0) -> 1 | S10: =IF(AND($C10<=$B$88,NOT(ISBLANK($C10)),UPPER(H10)="X"),1,0) -> 1 | T10: =IF(AND($C10<=$B$112,NOT(ISBLANK($C10)),UPPER(I10)="X"),1,0) -> 0 | U10: 175 | V10: 175 | W10: 175 | X10: 175 | Y10: =IF($T10=0,0,$D10*$T10) -> 0
A11: 2007-08-10 | B11: 20 | C11: 2007-08-10 | D11: 10 | I11: X | J11: =J10+1 -> 3 | P11: =IF(AND($C11<=$B$16,NOT(ISBLANK($C11)),UPPER(E11)="X"),1,0) -> 0 | Q11: =IF(AND($C11<=$B$40,NOT(ISBLANK($C11)),UPPER(F11)="X"),1,0) -> 0 | R11: =IF(AND($C11<=$B$64,NOT(ISBLANK($C11)),UPPER(G11)="X"),1,0) -> 0 | S11: =IF(AND($C11<=$B$88,NOT(ISBLANK($C11)),UPPER(H11)="X"),1,0) -> 0 | T11: =IF(AND($C11<=$B$112,NOT(ISBLANK($C11)),UPPER(I11)="X"),1,0) -> 1 | U11: 0 | V11: 0 | W11: 0 | X11: 0 | Y11: =IF($T11=0,0,$D11*$T11) -> 10
T12: total | U12: =SUM(U9:U11) -> 425 | V12: =SUM(V9:V11) -> 425 | W12: =SUM(W9:W11) -> 425 | X12: =SUM(X9:X11) -> 425 | Y12: =SUM(Y9:Y11) -> 10
A14: ACOMPANHAMENTO FÍSICO-FINANCEIRO
A15: PERÍODO 1: 0% a 25% do tempo de projeto
A16: DATA LIMITE: | B16: =0.25*$B$3+$B$1 -> 2006-10-31T06:00:00
A17: NOME DA RUBRICA | C17: VALOR | D17: VALOR ESTIMADO | E17: VALOR EXECUTADO | I17: SALDO | K17: META / ATIVIDADE | M17: CONTATO C/ COORDENADOR
A18: PESSOAL + ENCARGOS | C18: ='PREVISÃO DE DESPESA'!I25 -> 296318 | D18: =IF(ISERR(C18/SUM($C$18:$C$34)*$U$12),"",C18/SUM($C$18:$C$34)*$U$12) ->  | I18: =IF(ISERR(D18-E18),"",D18-E18) -> 
A19: BOLSA ACADÊMICA | C19: =totalRubrica02 -> 0 | I19: =IF(ISERR(D19-E19),"",D19-E19) -> 
A20: BOLSA ESTUDANTE | C20: =totalRubrica03 -> 0
A21: PESSOA FÍSICA | C21: =totalRubrica04 -> 0
A22: DIÁRIAS | C22: =totalRubrica05 -> 0
A23: PASSAGEM E LOCOMOÇÃO | C23: =totalRubrica06 -> 0
A24: MATERIAL DE CONSUMO | C24: =totalRubrica07 -> 0
A25: PESSOA JURÍDICA | C25: =totalRubrica08 -> 0
A26: OBRAS E INSTALAÇÕES | C26: =totalRubrica09 -> 0
A27: EQUIPAMENTO E MATERIAL | C27: =totalRubrica10 -> 0
A28: INSS EMPRESA | C28: =totalRubrica12 -> 0
A29: CPMF / TARIFAS | C29: =totalRubrica13 -> 4889.247
A30: FUNDEPES | C30: =totalRubrica14 -> 29631.8
A31: UFAL | C31: =totalRubrica15 -> 0
A32: DEPARTAMENTO | C32: =totalRubrica16 -> 0
A33: FCPT | C33: =totalRubrica17 -> 
A34: RESERVA TÉCNICA | C34: =totalRubrica18 -> 
A35: TOTAL | C35: =SUM(C18:C34) ->  | D35: =SUM(D18:D34) -> 0 | E35: =SUM(E18:E34) -> 0 | I35: =SUM(I18:J34) -> 0
A38: =A14 -> ACOMPANHAMENTO FÍSICO-FINANCEIRO
A39: PERÍODO 2: 25% a 50% do tempo de projeto
A40: DATA LIMITE: | B40: =0.5*$B$3+$B$1 -> 2007-01-30T12:00:00
A41: NOME DA RUBRICA | C41: VALOR | D41: VALOR ESTIMADO | E41: VALOR EXECUTADO | I41: SALDO | K41: META / ATIVIDADE | M41: CONTATO C/ COORDENADOR
A42: =A18 -> PESSOAL + ENCARGOS | C42: =C18 -> 296318 | D42: =IF(ISERR(C42/SUM($C$42:$C$58)*$V$12+I18),"",C42/SUM($C$42:$C$58)*$V$12+I18) ->  | I42: =IF(ISERR(D42-E42),"",D42-E42) -> 
A43: BOLSA ACADÊMICA | C43: 0 | D43: =IF(ISERR(C43/SUM($C$42:$C$58)*$V$12+I19),"",C43/SUM($C$42:$C$58)*$V$12+I19) ->  | I43: =IF(ISERR(D43-E43),"",D43-E43) -> 
A44: BOLSA ESTUDANTE | C44: 0
A45: PESSOA FÍSICA | C45: 0
A46: DIÁRIAS | C46: 0
A47: PASSAGEM E LOCOMOÇÃO | C47: 0
A48: MATERIAL DE CONSUMO | C48: 0
A49: PESSOA JURÍDICA | C49: 0
A50: OBRAS E INSTALAÇÕES | C50: 0
A51: EQUIPAMENTO E MATERIAL | C51: 0
A52: INSS EMPRESA | C52: 0
A53: CPMF / TARIFAS | C53: 4889.247
A54: FUNDEPES | C54: 29631.8
A55: UFAL | C55: 0
A56: DEPARTAMENTO | C56: 0
A57: FCPT
A58: RESERVA TÉCNICA
A59: TOTAL | C59: =SUM(C42:C58) ->  | D59: =SUM(D42:D58) -> 0 | E59: =SUM(E42:H58) -> 0 | I59: =SUM(I42:J58) -> 0 | J59: =SUM(J42:J58) -> 0
A62: =A38 -> ACOMPANHAMENTO FÍSICO-FINANCEIRO
A63: PERÍODO 3: 50% a 75% do tempo de projeto
A64: DATA LIMITE: | B64: =0.75*$B$3+$B$1 -> 2007-05-01T18:00:00
A65: NOME DA RUBRICA | C65: VALOR | D65: VALOR ESTIMADO | E65: VALOR EXECUTADO | I65: SALDO | K65: META / ATIVIDADE | M65: CONTATO C/ COORDENADOR
A66: =A18 -> PESSOAL + ENCARGOS | C66: =C18 -> 296318 | D66: =IF(ISERR(C66/SUM($C$66:$C$82)*$W$12+I42),"",C66/SUM($C$66:$C$82)*$W$12+I42) ->  | I66: =IF(ISERR(D66-E66),"",D66-E66) -> 
A67: BOLSA ACADÊMICA | C67: 0 | D67: =IF(ISERR(C67/SUM($C$66:$C$82)*$W$12+I43),"",C67/SUM($C$66:$C$82)*$W$12+I43) ->  | I67: =IF(ISERR(D67-E67),"",D67-E67) -> 
A68: BOLSA ESTUDANTE | C68: 0
A69: PESSOA FÍSICA | C69: 0
A70: DIÁRIAS | C70: 0
A71: PASSAGEM E LOCOMOÇÃO | C71: 0
A72: MATERIAL DE CONSUMO | C72: 0
A73: PESSOA JURÍDICA | C73: 0
A74: OBRAS E INSTALAÇÕES | C74: 0
A75: EQUIPAMENTO E MATERIAL | C75: 0
A76: INSS EMPRESA | C76: 0
A77: CPMF / TARIFAS | C77: 4889.247
A78: FUNDEPES | C78: 29631.8
A79: UFAL | C79: 0
A80: DEPARTAMENTO | C80: 0
A81: FCPT
A82: RESERVA TÉCNICA
A83: TOTAL | C83: =SUM(C66:C82) ->  | D83: =SUM(D66:D82) -> 0 | E83: =SUM(E66:H82) -> 0 | I83: =SUM(I66:J82) -> 0 | J83: =SUM(J66:J82) -> 0
A86: =A62 -> ACOMPANHAMENTO FÍSICO-FINANCEIRO
A87: PERÍODO 4: 75% a 100% do tempo de projeto
A88: DATA LIMITE: | B88: =1*$B$3+$B$1 -> 2007-08-01
A89: NOME DA RUBRICA | C89: VALOR | D89: VALOR ESTIMADO | E89: VALOR EXECUTADO | I89: SALDO | K89: META / ATIVIDADE | M89: CONTATO C/ COORDENADOR
A90: =A18 -> PESSOAL + ENCARGOS | C90: =C18 -> 296318 | D90: =IF(ISERR(C90/SUM($C$90:$C$106)*$X$12+I66),"",C90/SUM($C$90:$C$106)*$X$12+I66) ->  | I90: =IF(ISERR(D90-E90),"",D90-E90) -> 
A91: BOLSA ACADÊMICA | C91: 0 | D91: =IF(ISERR(C91/SUM($C$90:$C$106)*$X$12+I67),"",C91/SUM($C$90:$C$106)*$X$12+I67) ->  | I91: =IF(ISERR(D91-E91),"",D91-E91) -> 
A92: BOLSA ESTUDANTE | C92: 0
A93: PESSOA FÍSICA | C93: 0
A94: DIÁRIAS | C94: 0
A95: PASSAGEM E LOCOMOÇÃO | C95: 0
A96: MATERIAL DE CONSUMO | C96: 0
A97: PESSOA JURÍDICA | C97: 0
A98: OBRAS E INSTALAÇÕES | C98: 0
A99: EQUIPAMENTO E MATERIAL | C99: 0
A100: INSS EMPRESA | C100: 0
A101: CPMF / TARIFAS | C101: 4889.247
A102: FUNDEPES | C102: 29631.8
A103: UFAL | C103: 0
A104: DEPARTAMENTO | C104: 0
A105: FCPT
A106: RESERVA TÉCNICA
A107: TOTAL | C107: =SUM(C90:C106) ->  | D107: =SUM(D90:D106) -> 0 | E107: =SUM(E90:H106) -> 0 | I107: =SUM(I90:J106) -> 0 | J107: =SUM(J90:J106) -> 0
A110: =A86 -> ACOMPANHAMENTO FÍSICO-FINANCEIRO
A111: PERÍODO 5 | D111: Tempo Complementar: | E111: 60 | I111: dias
A112: DATA LIMITE: | B112: =1*$B$3+$B$1+E111 -> 2007-09-30
A113: NOME DA RUBRICA | C113: VALOR | D113: VALOR ESTIMADO | E113: VALOR EXECUTADO | I113: SALDO | K113: META / ATIVIDADE | M113: CONTATO C/ COORDENADOR
A114: =A42 -> PESSOAL + ENCARGOS | C114: =C42 -> 296318 | D114: =IF(ISERR(C114/SUM($C$114:$C$130)*$Y$12+I90),"",C114/SUM($C$114:$C$130)*$Y$12+I90) ->  | I114: =IF(ISERR(D114-E114),"",D114-E114) -> 
A115: BOLSA ACADÊMICA | C115: 0 | D115: =IF(ISERR(C115/SUM($C$114:$C$130)*$Y$12+I91),"",C115/SUM($C$114:$C$130)*$Y$12+I91) ->  | I115: =IF(ISERR(D115-E115),"",D115-E115) -> 
A116: BOLSA ESTUDANTE | C116: 0
A117: PESSOA FÍSICA | C117: 0
A118: DIÁRIAS | C118: 0
A119: PASSAGEM E LOCOMOÇÃO | C119: 0
A120: MATERIAL DE CONSUMO | C120: 0
A121: PESSOA JURÍDICA | C121: 0
A122: OBRAS E INSTALAÇÕES | C122: 0
A123: EQUIPAMENTO E MATERIAL | C123: 0
A124: INSS EMPRESA | C124: 0
A125: CPMF / TARIFAS | C125: 4889.247
A126: FUNDEPES | C126: 29631.8
A127: UFAL | C127: 0
A128: DEPARTAMENTO | C128: 0
A129: FCPT
A130: RESERVA TÉCNICA
A131: TOTAL | C131: =SUM(C114:C130) ->  | D131: =SUM(D114:D130) -> 0 | E131: =SUM(E114:H130) -> 0 | I131: =SUM(I114:J130) -> 0 | J131: =SUM(J114:J130) -> 0

Sheet ACOMPANHAMENTO 2 (hidden)
A1: DATA INÍCIO | B1: 2006-08-01
A2: DATA FIM | B2: 2007-08-01
A3: VIGÊNCIA | B3: =dias(B1,B2) -> 365 | C3: dias
A6: CRONOGRAMA DE DESEMBOLSO
A7: DATA | B7: VALOR | C7: DATA DE RECEB. | D7: VALOR RECEBIDO | E7: PERÍODOS | N7: 3
E8: 1 | F8: 2 | G8: 3 | H8: 4 | I8: 5 | J8: 6 | K8: 7 | L8: 8 | R8: 1 | S8: 2 | T8: 3 | U8: 4 | V8: 5 | W8: 6 | X8: 7 | Y8: 8 | Z8: valor1 | AA8: valor2 | AB8: valor3 | AC8: valor4 | AD8: valor5 | AE8: valor6 | AF8: valor7 | AG8: valor8
M9: =M8+1 -> 1 | R9: =IF(AND($C9<=$B$16,NOT(ISBLANK($C9)),UPPER(E9)="X"),1,0) -> 0 | S9: =IF(AND($C9<=$B$40,NOT(ISBLANK($C9)),UPPER(F9)="X"),1,0) -> 0 | T9: =IF(AND($C9<=$B$64,NOT(ISBLANK($C9)),UPPER(G9)="X"),1,0) -> 0 | U9: =IF(AND($C9<=$B$88,NOT(ISBLANK($C9)),UPPER(H9)="X"),1,0) -> 0 | V9: =IF(AND($C9<=$B$112,NOT(ISBLANK($C9)),UPPER(I9)="X"),1,0) -> 0 | W9: =IF(AND($C9<=$B$136,NOT(ISBLANK($C9)),UPPER(J9)="X"),1,0) -> 0 | X9: =IF(AND($C9<=$B$160,NOT(ISBLANK($C9)),UPPER(K9)="X"),1,0) -> 0 | Y9: =IF(AND($C9<=$B$184,NOT(ISBLANK($C9)),UPPER(L9)="X"),1,0) -> 0 | Z9: =IF(SUM($R9:$Y9)=0,0,$D9/SUM($R9:$Y9)*R9) -> 0 | AA9: 0 | AB9: =IF(SUM($R9:$Y9)=0,0,$D9/SUM($R9:$Y9)*T9) -> 0 | AC9: 0 | AD9: 0 | AE9: 0 | AF9: 0 | AG9: 0
M10: =M9+1 -> 2 | R10: =IF(AND($C10<=$B$16,NOT(ISBLANK($C10)),UPPER(E10)="X"),1,0) -> 0 | S10: =IF(AND($C10<=$B$40,NOT(ISBLANK($C10)),UPPER(F10)="X"),1,0) -> 0 | T10: =IF(AND($C10<=$B$64,NOT(ISBLANK($C10)),UPPER(G10)="X"),1,0) -> 0 | U10: =IF(AND($C10<=$B$88,NOT(ISBLANK($C10)),UPPER(H10)="X"),1,0) -> 0 | V10: =IF(AND($C10<=$B$112,NOT(ISBLANK($C10)),UPPER(I10)="X"),1,0) -> 0 | W10: =IF(AND($C10<=$B$136,NOT(ISBLANK($C10)),UPPER(J10)="X"),1,0) -> 0 | X10: =IF(AND($C10<=$B$160,NOT(ISBLANK($C10)),UPPER(K10)="X"),1,0) -> 0 | Y10: =IF(AND($C10<=$B$184,NOT(ISBLANK($C10)),UPPER(L10)="X"),1,0) -> 0 | Z10: 0 | AA10: 0 | AB10: =IF(SUM($R10:$Y10)=0,0,$D10/SUM($R10:$Y10)*T10) -> 0 | AC10: 0 | AD10: 0 | AE10: 0 | AF10: 0 | AG10: 0
M11: =M10+1 -> 3 | R11: =IF(AND($C11<=$B$16,NOT(ISBLANK($C11)),UPPER(E11)="X"),1,0) -> 0 | S11: =IF(AND($C11<=$B$40,NOT(ISBLANK($C11)),UPPER(F11)="X"),1,0) -> 0 | T11: =IF(AND($C11<=$B$64,NOT(ISBLANK($C11)),UPPER(G11)="X"),1,0) -> 0 | U11: =IF(AND($C11<=$B$88,NOT(ISBLANK($C11)),UPPER(H11)="X"),1,0) -> 0 | V11: =IF(AND($C11<=$B$112,NOT(ISBLANK($C11)),UPPER(I11)="X"),1,0) -> 0 | W11: =IF(AND($C11<=$B$136,NOT(ISBLANK($C11)),UPPER(J11)="X"),1,0) -> 0 | X11: =IF(AND($C11<=$B$160,NOT(ISBLANK($C11)),UPPER(K11)="X"),1,0) -> 0 | Y11: =IF(AND($C11<=$B$184,NOT(ISBLANK($C11)),UPPER(L11)="X"),1,0) -> 0 | Z11: 0 | AA11: 0 | AB11: 0 | AC11: 0 | AD11: 0 | AE11: 0 | AF11: 0 | AG11: 0
Y12: total | Z12: =SUM(Z9:Z11) -> 0 | AA12: 0 | AB12: 0 | AC12: 0 | AD12: 0 | AE12: 0 | AF12: 0 | AG12: 0
A14: ACOMPANHAMENTO FÍSICO-FINANCEIRO
A15: PERÍODO 1: 0% a 12,5% do tempo de projeto
A16: DATA LIMITE: | B16: =0.125*$B$3+$B$1 -> 2006-09-15T15:00:00
A17: NOME DA RUBRICA | C17: VALOR | D17: VALOR ESTIMADO | E17: VALOR EXECUTADO | I17: SALDO | M17: META / ATIVIDADE | O17: CONTATO C/ COORDENADOR
A18: PESSOAL + ENCARGOS | C18: ='PREVISÃO DE DESPESA'!I25 -> 296318 | D18: =IF(ISERR(C18/SUM($C$18:$C$34)*$Z$12),"",C18/SUM($C$18:$C$34)*$Z$12) ->  | I18: =IF(ISERR(D18-E18),"",D18-E18) -> 
A19: BOLSA ACADÊMICA | C19: =totalRubrica02 -> 0 | I19: =IF(ISERR(D19-E19),"",D19-E19) -> 
A20: BOLSA ESTUDANTE | C20: =totalRubrica03 -> 0
A21: PESSOA FÍSICA | C21: =totalRubrica04 -> 0
A22: DIÁRIAS | C22: =totalRubrica05 -> 0
A23: PASSAGEM E LOCOMOÇÃO | C23: =totalRubrica06 -> 0
A24: MATERIAL DE CONSUMO | C24: =totalRubrica07 -> 0
A25: PESSOA JURÍDICA | C25: =totalRubrica08 -> 0
A26: OBRAS E INSTALAÇÕES | C26: =totalRubrica09 -> 0
A27: EQUIPAMENTO E MATERIAL | C27: =totalRubrica10 -> 0
A28: INSS EMPRESA | C28: =totalRubrica12 -> 0
A29: CPMF / TARIFAS | C29: =totalRubrica13 -> 4889.247
A30: FUNDEPES | C30: =totalRubrica14 -> 29631.8
A31: UFAL | C31: =totalRubrica15 -> 0
A32: DEPARTAMENTO | C32: =totalRubrica16 -> 0
A33: FCPT | C33: =totalRubrica17 -> 
A34: RESERVA TÉCNICA | C34: =totalRubrica18 -> 
A35: TOTAL | C35: =SUM(C18:C34) ->  | D35: =SUM(D18:D34) -> 0 | E35: =SUM(E18:E34) -> 0 | I35: =SUM(I18:L34) -> 0
A38: =A14 -> ACOMPANHAMENTO FÍSICO-FINANCEIRO
A39: PERÍODO 2: 12,5% a 25% do tempo de projeto
A40: DATA LIMITE: | B40: =0.25*$B$3+$B$1 -> 2006-10-31T06:00:00
A41: NOME DA RUBRICA | C41: VALOR | D41: VALOR ESTIMADO | E41: VALOR EXECUTADO | I41: SALDO | M41: META / ATIVIDADE | O41: CONTATO C/ COORDENADOR
A42: =A18 -> PESSOAL + ENCARGOS | C42: =C18 -> 296318 | D42: =IF(ISERR(C42/SUM($C$42:$C$58)*$AA$12+I18),"",C42/SUM($C$42:$C$58)*$AA$12+I18) ->  | I42: =IF(ISERR(D42-E42),"",D42-E42) -> 
A43: BOLSA ACADÊMICA | C43: 0 | D43: =IF(ISERR(C43/SUM($C$42:$C$58)*$AA$12+I19),"",C43/SUM($C$42:$C$58)*$AA$12+I19) ->  | I43: =IF(ISERR(D43-E43),"",D43-E43) -> 
A44: BOLSA ESTUDANTE | C44: 0
A45: PESSOA FÍSICA | C45: 0
A46: DIÁRIAS | C46: 0
A47: PASSAGEM E LOCOMOÇÃO | C47: 0
A48: MATERIAL DE CONSUMO | C48: 0
A49: PESSOA JURÍDICA | C49: 0
A50: OBRAS E INSTALAÇÕES | C50: 0
A51: EQUIPAMENTO E MATERIAL | C51: 0
A52: INSS EMPRESA | C52: 0
A53: CPMF / TARIFAS | C53: 4889.247
A54: FUNDEPES | C54: 29631.8
A55: UFAL | C55: 0
A56: DEPARTAMENTO | C56: 0
A57: FCPT
A58: RESERVA TÉCNICA
A59: TOTAL | C59: =SUM(C42:C58) ->  | D59: =SUM(D42:D58) -> 0 | E59: =SUM(E42:H58) -> 0 | I59: =SUM(I42:L58) -> 0
A62: =A38 -> ACOMPANHAMENTO FÍSICO-FINANCEIRO
A63: PERÍODO 3: 25% a 37,5% do tempo de projeto
A64: DATA LIMITE: | B64: =0.375*$B$3+$B$1 -> 2006-12-15T21:00:00
A65: NOME DA RUBRICA | C65: VALOR | D65: VALOR ESTIMADO | E65: VALOR EXECUTADO | I65: SALDO | M65: META / ATIVIDADE | O65: CONTATO C/ COORDENADOR
A66: =A18 -> PESSOAL + ENCARGOS | C66: =C18 -> 296318 | D66: =IF(ISERR(C66/SUM($C$66:$C$82)*$AB$12+I42),"",C66/SUM($C$66:$C$82)*$AB$12+I42) ->  | I66: =IF(ISERR(D66-E66),"",D66-E66) -> 
A67: BOLSA ACADÊMICA | C67: 0 | D67: =IF(ISERR(C67/SUM($C$66:$C$82)*$AB$12+I43),"",C67/SUM($C$66:$C$82)*$AB$12+I43) ->  | I67: =IF(ISERR(D67-E67),"",D67-E67) -> 
A68: BOLSA ESTUDANTE | C68: 0
A69: PESSOA FÍSICA | C69: 0
A70: DIÁRIAS | C70: 0
A71: PASSAGEM E LOCOMOÇÃO | C71: 0
A72: MATERIAL DE CONSUMO | C72: 0
A73: PESSOA JURÍDICA | C73: 0
A74: OBRAS E INSTALAÇÕES | C74: 0
A75: EQUIPAMENTO E MATERIAL | C75: 0
A76: INSS EMPRESA | C76: 0
A77: CPMF / TARIFAS | C77: 4889.247
A78: FUNDEPES | C78: 29631.8
A79: UFAL | C79: 0
A80: DEPARTAMENTO | C80: 0
A81: FCPT
A82: RESERVA TÉCNICA
A83: TOTAL | C83: =SUM(C66:C82) ->  | D83: =SUM(D66:D82) -> 0 | E83: =SUM(E66:H82) -> 0 | I83: =SUM(I66:L82) -> 0
A86: =A62 -> ACOMPANHAMENTO FÍSICO-FINANCEIRO
A87: PERÍODO 4: 37,5% a 50% do tempo de projeto
A88: DATA LIMITE: | B88: =0.5*$B$3+$B$1 -> 2007-01-30T12:00:00
A89: NOME DA RUBRICA | C89: VALOR | D89: VALOR ESTIMADO | E89: VALOR EXECUTADO | I89: SALDO | M89: META / ATIVIDADE | O89: CONTATO C/ COORDENADOR
A90: =A18 -> PESSOAL + ENCARGOS | C90: =C18 -> 296318 | D90: =IF(ISERR(C90/SUM($C$90:$C$106)*$AC$12+I66),"",C90/SUM($C$90:$C$106)*$AC$12+I66) ->  | I90: =IF(ISERR(D90-E90),"",D90-E90) -> 
A91: BOLSA ACADÊMICA | C91: 0 | D91: =IF(ISERR(C91/SUM($C$90:$C$106)*$AC$12+I67),"",C91/SUM($C$90:$C$106)*$AC$12+I67) ->  | I91: =IF(ISERR(D91-E91),"",D91-E91) -> 
A92: BOLSA ESTUDANTE | C92: 0
A93: PESSOA FÍSICA | C93: 0
A94: DIÁRIAS | C94: 0
A95: PASSAGEM E LOCOMOÇÃO | C95: 0
A96: MATERIAL DE CONSUMO | C96: 0
A97: PESSOA JURÍDICA | C97: 0
A98: OBRAS E INSTALAÇÕES | C98: 0
A99: EQUIPAMENTO E MATERIAL | C99: 0
A100: INSS EMPRESA | C100: 0
A101: CPMF / TARIFAS | C101: 4889.247
A102: FUNDEPES | C102: 29631.8
A103: UFAL | C103: 0
A104: DEPARTAMENTO | C104: 0
A105: FCPT
A106: RESERVA TÉCNICA
A107: TOTAL | C107: =SUM(C90:C106) ->  | D107: =SUM(D90:D106) -> 0 | E107: =SUM(E90:H106) -> 0 | I107: =SUM(I90:L106) -> 0
A110: =A86 -> ACOMPANHAMENTO FÍSICO-FINANCEIRO
A111: PERÍODO 5: 50% a 62,5% do tempo de projeto
A112: DATA LIMITE: | B112: =0.625*$B$3+$B$1 -> 2007-03-17T03:00:00
A113: NOME DA RUBRICA | C113: VALOR | D113: VALOR ESTIMADO | E113: VALOR EXECUTADO | I113: SALDO | M113: META / ATIVIDADE | O113: CONTATO C/ COORDENADOR
A114: =A42 -> PESSOAL + ENCARGOS | C114: =C42 -> 296318 | D114: =IF(ISERR(C114/SUM($C$114:$C$130)*$AD$12+I90),"",C114/SUM($C$114:$C$130)*$AD$12+I90) ->  | I114: =IF(ISERR(D114-E114),"",D114-E114) -> 
A115: BOLSA ACADÊMICA | C115: 0 | D115: =IF(ISERR(C115/SUM($C$114:$C$130)*$AD$12+I91),"",C115/SUM($C$114:$C$130)*$AD$12+I91) ->  | I115: =IF(ISERR(D115-E115),"",D115-E115) -> 
A116: BOLSA ESTUDANTE | C116: 0
A117: PESSOA FÍSICA | C117: 0
A118: DIÁRIAS | C118: 0
A119: PASSAGEM E LOCOMOÇÃO | C119: 0
A120: MATERIAL DE CONSUMO | C120: 0
A121: PESSOA JURÍDICA | C121: 0
A122: OBRAS E INSTALAÇÕES | C122: 0
A123: EQUIPAMENTO E MATERIAL | C123: 0
A124: INSS EMPRESA | C124: 0
A125: CPMF / TARIFAS | C125: 4889.247
A126: FUNDEPES | C126: 29631.8
A127: UFAL | C127: 0
A128: DEPARTAMENTO | C128: 0
A129: FCPT
A130: RESERVA TÉCNICA
A131: TOTAL | C131: =SUM(C114:C130) ->  | D131: =SUM(D114:D130) -> 0 | E131: =SUM(E114:H130) -> 0 | I131: =SUM(I114:L130) -> 0
A134: =A110 -> ACOMPANHAMENTO FÍSICO-FINANCEIRO
A135: PERÍODO 6: 62,5% a 75% do tempo de projeto
A136: DATA LIMITE: | B136: =0.75*$B$3+$B$1 -> 2007-05-01T18:00:00
A137: NOME DA RUBRICA | C137: VALOR | D137: VALOR ESTIMADO | E137: VALOR EXECUTADO | I137: SALDO | M137: META / ATIVIDADE | O137: CONTATO C/ COORDENADOR
A138: =A66 -> PESSOAL + ENCARGOS | C138: =C66 -> 296318 | D138: =IF(ISERR(C138/SUM($C$138:$C$154)*$AE$12+I114),"",C138/SUM($C$138:$C$154)*$AE$12+I114) ->  | I138: =IF(ISERR(D138-E138),"",D138-E138) -> 
A139: BOLSA ACADÊMICA | C139: 0 | D139: =IF(ISERR(C139/SUM($C$138:$C$154)*$AE$12+I115),"",C139/SUM($C$138:$C$154)*$AE$12+I115) ->  | I139: =IF(ISERR(D139-E139),"",D139-E139) -> 
A140: BOLSA ESTUDANTE | C140: 0
A141: PESSOA FÍSICA | C141: 0
A142: DIÁRIAS | C142: 0
A143: PASSAGEM E LOCOMOÇÃO | C143: 0
A144: MATERIAL DE CONSUMO | C144: 0
A145: PESSOA JURÍDICA | C145: 0
A146: OBRAS E INSTALAÇÕES | C146: 0
A147: EQUIPAMENTO E MATERIAL | C147: 0
A148: INSS EMPRESA | C148: 0
A149: CPMF / TARIFAS | C149: 4889.247
A150: FUNDEPES | C150: 29631.8
A151: UFAL | C151: 0
A152: DEPARTAMENTO | C152: 0
A153: FCPT
A154: RESERVA TÉCNICA
A155: TOTAL | C155: =SUM(C138:C154) ->  | D155: =SUM(D138:D154) -> 0 | E155: =SUM(E138:H154) -> 0 | I155: =SUM(I138:L154) -> 0
A158: =A134 -> ACOMPANHAMENTO FÍSICO-FINANCEIRO
A159: PERÍODO 7: 75% a 87,5% do tempo de projeto
A160: DATA LIMITE: | B160: =0.875*$B$3+$B$1 -> 2007-06-16T09:00:00
A161: NOME DA RUBRICA | C161: VALOR | D161: VALOR ESTIMADO | E161: VALOR EXECUTADO | I161: SALDO | M161: META / ATIVIDADE | O161: CONTATO C/ COORDENADOR
A162: =A90 -> PESSOAL + ENCARGOS | C162: =C90 -> 296318 | D162: =IF(ISERR(C162/SUM($C$162:$C$178)*$AF$12+I138),"",C162/SUM($C$162:$C$178)*$AF$12+I138) ->  | I162: =IF(ISERR(D162-E162),"",D162-E162) -> 
A163: BOLSA ACADÊMICA | C163: 0 | D163: =IF(ISERR(C163/SUM($C$162:$C$178)*$AF$12+I139),"",C163/SUM($C$162:$C$178)*$AF$12+I139) ->  | I163: =IF(ISERR(D163-E163),"",D163-E163) -> 
A164: BOLSA ESTUDANTE | C164: 0
A165: PESSOA FÍSICA | C165: 0
A166: DIÁRIAS | C166: 0
A167: PASSAGEM E LOCOMOÇÃO | C167: 0
A168: MATERIAL DE CONSUMO | C168: 0
A169: PESSOA JURÍDICA | C169: 0
A170: OBRAS E INSTALAÇÕES | C170: 0
A171: EQUIPAMENTO E MATERIAL | C171: 0
A172: INSS EMPRESA | C172: 0
A173: CPMF / TARIFAS | C173: 4889.247
A174: FUNDEPES | C174: 29631.8
A175: UFAL | C175: 0
A176: DEPARTAMENTO | C176: 0
A177: FCPT
A178: RESERVA TÉCNICA
A179: TOTAL | C179: =SUM(C162:C178) ->  | D179: =SUM(D162:D178) -> 0 | E179: =SUM(E162:H178) -> 0 | I179: =SUM(I162:L178) -> 0
A182: =A158 -> ACOMPANHAMENTO FÍSICO-FINANCEIRO
A183: PERÍODO 8: 87,5% a 100% do tempo de projeto
A184: DATA LIMITE: | B184: =1*$B$3+$B$1 -> 2007-08-01
A185: NOME DA RUBRICA | C185: VALOR | D185: VALOR ESTIMADO | E185: VALOR EXECUTADO | I185: SALDO | M185: META / ATIVIDADE | O185: CONTATO C/ COORDENADOR
A186: =A114 -> PESSOAL + ENCARGOS | C186: =C114 -> 296318 | D186: =IF(ISERR(C186/SUM($C$186:$C$202)*$AG$12+I162),"",C186/SUM($C$186:$C$202)*$AG$12+I162) ->  | I186: =IF(ISERR(D186-E186),"",D186-E186) -> 
A187: BOLSA ACADÊMICA | C187: 0 | D187: =IF(ISERR(C187/SUM($C$186:$C$202)*$AG$12+I163),"",C187/SUM($C$186:$C$202)*$AG$12+I163) ->  | I187: =IF(ISERR(D187-E187),"",D187-E187) -> 
A188: BOLSA ESTUDANTE | C188: 0
A189: PESSOA FÍSICA | C189: 0
A190: DIÁRIAS | C190: 0
A191: PASSAGEM E LOCOMOÇÃO | C191: 0
A192: MATERIAL DE CONSUMO | C192: 0
A193: PESSOA JURÍDICA | C193: 0
A194: OBRAS E INSTALAÇÕES | C194: 0
A195: EQUIPAMENTO E MATERIAL | C195: 0
A196: INSS EMPRESA | C196: 0
A197: CPMF / TARIFAS | C197: 4889.247
A198: FUNDEPES | C198: 29631.8
A199: UFAL | C199: 0
A200: DEPARTAMENTO | C200: 0
A201: FCPT
A202: RESERVA TÉCNICA
A203: TOTAL | C203: =SUM(C186:C202) ->  | D203: =SUM(D186:D202) -> 0 | E203: =SUM(E186:H202) -> 0 | I203: =SUM(I186:L202) -> 0

Sheet AUXILIAR (hidden)
A1: qwertyuiop | B1: <<< Senha Verdadeira
A2: projetos2020 | B2: <<< Senha 1
A3: 13dez78 | B3: <<< Senha 2
A4: *FUNDEPES* | B4: <<< Senha 3
A5: 1 | B5: <<< Protegido?
B6: 1 - sim
B7: 0 - não
A8: 0 | B8: <<< Visualizar?
B9: 1 - sim
B10: 0 - não
A11: TRUE | B11: <<< Abertura?
A12: 30 de março de 2020 | B12: <<< Versão 5 | C12: Modificações nas rubricas DESPESAS COM PESSOAL e ENCARGOS SOCIAIS. Criação da rubrica OBRIGAÇÕES PATRONAIS. Todas as principais modificações ocorreram na planilha PREVISÃO DE DESPESA.
A13: 27 de maio de 2020 | B13: <<< Versão 4 | C13: Alteração dos rótulos num03 e num04 para _num03 e _num04; Redução do texto dos botões Ocultar/Exibir; Acrescentado nos SOMATÓRIOS os totais das rubricas Seguro Estário e Auxilio Estudante; Modicação das fórmulas IR
A14: 27 de maio de 2020 | B14: <<< Versão 4
A15: 2008-03-16 | B15: <<< Versão 3
A16: 2006-03-07 | B16: <<< Versão 2
A17: 2005-07-05 | B17: <<< Versão 1
